bitfinex/quotes_SOLUSD_20251214
["timestamp","ask_amount","ask_price","bid_price","bid_amount"]
[1765707950783,5.6763463,132.04,132.01,87.71264962]
[1765707950936,5.6763463,132.05,132.02,0.72]
[1765707951235,4.9963463,132.04,132.02,0.72]
[1765707951435,4.9963463,132.03,132.02,8.2946099]
[1765707951660,4.9963463,132.04,132.02,8.2946099]
[1765707951965,4.9963463,132.03,132.02,8.2946099]
[1765707952147,4.9963463,132.04,132.02,8.2946099]
[1765707952349,4.9963463,132.03,132.02,8.2946099]
[1765707955378,9.12045996,132.03,132.0,16.79558639]
[1765707955673,4.9963463,132.02,132.0,16.79558639]
[1765707955879,4.9963463,132.01,132.0,16.79558639]
[1765707956256,4.9963463,132.01,132.0,8.49558639]
[1765707958355,4.9963463,132.01,132.0,11.93970005]
[1765707960267,4.9963463,132.01,132.0,8.49558639]
[1765707961882,4.9963463,132.01,132.0,11.93970005]
[1765707962380,4.9963463,132.01,132.0,8.49558639]
[1765707964681,4.9963463,132.01,132.0,0.2]
[1765707966076,5.6663463,132.01,132.0,0.2]
[1765707968680,4.9963463,132.01,132.0,7.77575757]
[1765707973290,4.9963463,132.01,132.0,8.43575757]
[1765707978184,4.9963463,132.01,132.0,11.87987123]
[1765707978390,4.9963463,132.01,132.0,8.43575757]
[1765707978976,4.9963463,132.01,132.0,7.77575757]
[1765707980480,4.9963463,132.01,132.0,8.43575757]
[1765707992006,4.9963463,132.01,132.0,7.77575757]
[1765707994891,5.6863463,132.01,132.0,0.2]
[1765707995295,15.41443663,132.01,132.0,0.2]
[1765707995679,22.98962032,132.01,132.0,0.2]
[1765707996623,23.27394346,132.01,132.0,0.2]
[1765707996826,16.98996679,132.01,131.96,7.57791281]
[1765707996983,3.44411366,131.99,131.95,7.57862826]
[1765707997313,4.9963463,131.98,131.95,7.57862826]
[1765707997482,4.9963463,131.97,131.95,8.28862826]
[1765707997683,0.69,132.0,131.96,4.15411366]
[1765707997984,5.06144999,131.99,131.96,3.44411366]
[1765707998185,5.06144999,131.98,131.97,0.71]
[1765707998793,5.06144999,131.98,131.97,8.28747973]
[1765707998996,5.06144999,131.98,131.97,7.57747973]
[1765707999698,5.06144999,131.98,131.97,11.02159339]
[1765707999884,5.06144999,131.98,131.97,9.78284919]
[1765708001599,5.06144999,131.98,131.97,10.49284919]
[1765708004084,5.06144999,131.98,131.97,7.57747973]
[1765708004289,5.75144999,131.98,131.96,7.577641]
[1765708004488,5.06144999,131.97,131.96,7.577641]
[1765708005393,5.06144999,131.97,131.96,10.49301046]
[1765708005621,7.02012926,132.01,131.96,45.54976945]
[1765708005802,5.05749163,132.0,131.98,2.20536946]
[1765708005999,5.05749163,131.99,131.98,2.20536946]
[1765708006206,5.05749163,131.99,131.98,10.50536946]
[1765708006390,5.74749163,131.99,131.98,8.3]
[1765708006587,5.74749163,131.99,131.96,29.43814534]
[1765708006822,0.69,132.0,131.97,0.71]
[1765708007118,5.05778883,131.99,131.97,0.71]
[1765708007294,0.69,132.0,131.97,22.9147709]
[1765708007295,50.69,132.0,131.97,22.9147709]
[1765708007495,5.05780798,131.99,131.98,7.57690559]
[1765708008322,5.74780798,131.99,131.97,7.57729761]
[1765708008494,5.05780798,131.98,131.97,7.57729761]
[1765708009203,5.05780798,131.98,131.97,8.28729761]
[1765708010592,0.69,132.0,131.97,8.28729761]
[1765708010806,5.05723856,131.99,131.98,0.71]
[1765708011705,5.05723856,131.99,131.98,10.49227505]
[1765708012311,5.05723856,131.99,131.98,8.28690559]
[1765708014626,5.05723856,131.99,131.98,14.61703485]
[1765708019043,5.05723856,131.99,131.98,13.90703485]
[1765708020736,5.71723856,131.99,131.98,13.90703485]
[1765708020918,5.05723856,131.99,131.98,7.57690559]
[1765708021104,7.92260802,131.99,131.94,0.2]
[1765708021305,2.20536946,131.96,131.95,13.90476357]
[1765708021529,7.92260802,131.96,131.95,13.90476357]
[1765708021710,5.05723856,131.96,131.95,13.90476357]
[1765708022135,5.05723856,131.96,131.94,7.77917868]
[1765708022443,2.86536946,131.97,131.94,7.77917868]
[1765708022635,5.05284302,131.96,131.94,7.77917868]
[1765708022931,0.66,131.97,131.94,8.48917868]
[1765708023118,5.05292087,131.96,131.94,8.48917868]
[1765708023318,2.86536946,131.97,131.94,8.48917868]
[1765708023517,5.05230018,131.96,131.94,8.48917868]
[1765708023717,0.66,131.97,131.94,8.48917868]
[1765708023919,5.05230018,131.96,131.94,8.48917868]
[1765708024136,0.66,131.97,131.94,8.48917868]
[1765708024338,5.05172359,131.96,131.94,8.48917868]
[1765708024514,0.66,131.97,131.94,8.48917868]
[1765708024714,5.05179408,131.96,131.94,8.48917868]
[1765708024913,0.66,131.97,131.94,8.48917868]
[1765708025181,5.05179408,131.96,131.94,8.48917868]
[1765708026057,52.20536946,131.99,131.94,9.98454814]
[1765708026352,5.71159205,131.98,131.95,5.76179408]
[1765708026550,5.05159205,131.97,131.95,5.05179408]
[1765708026715,0.66,131.97,131.95,5.05179408]
[1765708027035,0.66,131.97,131.95,12.62997338]
[1765708029469,0.66,131.97,131.95,7.5781793]
[1765708031069,0.66,131.97,131.95,8.2881793]
[1765708033268,59.78177258,131.99,131.95,8.2881793]
[1765708033455,5.05359018,131.98,131.96,2.91536946]
[1765708033652,50.0,131.99,131.96,2.91536946]
[1765708033970,5.05389585,131.98,131.96,2.91536946]
[1765708034179,0.66,131.98,131.95,47.87879209]
[1765708034478,50.66,131.99,131.96,0.71]
[1765708034653,5.05486989,131.98,131.96,0.71]
[1765708034964,50.66,131.99,131.96,0.71]
[1765708035139,5.05487716,131.98,131.96,0.71]
[1765708035339,50.66,131.99,131.96,8.28766175]
[1765708035557,5.05595724,131.98,131.96,8.28766175]
[1765708035740,50.66,131.99,131.96,8.28766175]
[1765708035940,5.05595724,131.98,131.96,8.28766175]
[1765708036261,50.66,131.99,131.96,8.28766175]
[1765708036464,5.05716849,131.98,131.96,8.28766175]
[1765708036768,50.66,131.99,131.96,8.28766175]
[1765708036941,5.05716849,131.98,131.96,8.28766175]
[1765708037144,50.66,131.99,131.96,8.28766175]
[1765708037455,5.05736671,131.98,131.96,8.28766175]
[1765708037644,50.66,131.99,131.96,8.28766175]
[1765708037850,5.05853979,131.98,131.96,8.28766175]
[1765708038038,50.66,131.99,131.96,8.28766175]
[1765708038238,5.05853979,131.98,131.96,9.78303121]
[1765708038466,50.0,131.99,131.97,0.71]
[1765708038644,5.06007966,131.98,131.96,32.54392798]
[1765708038843,50.66,131.99,131.96,33.25392798]
[1765708039054,5.0600779,131.98,131.96,33.25392798]
[1765708039241,50.66,131.99,131.96,33.25392798]
[1765708039446,5.0616618,131.98,131.96,33.25392798]
[1765708039653,50.66,131.99,131.96,33.25392798]
[1765708039875,5.06166252,131.98,131.96,33.25392798]
[1765708040198,50.66,131.99,131.96,33.25392798]
[1765708040369,5.06180091,131.98,131.96,33.25392798]
[1765708040575,50.66,131.99,131.96,33.25392798]
[1765708040864,5.06199862,131.98,131.96,33.25392798]
[1765708041056,50.66,131.99,131.96,33.25392798]
[1765708041259,5.06199862,131.98,131.96,33.25392798]
[1765708041462,5.06199862,131.97,131.96,33.25392798]
[1765708042773,0.66,131.99,131.96,33.25392798]
[1765708042947,5.06276483,131.98,131.96,33.25392798]
[1765708043140,0.66,131.99,131.96,33.25392798]
[1765708043340,5.062824,131.98,131.96,33.25392798]
[1765708043540,0.66,131.99,131.96,33.25392798]
[1765708043742,5.06269277,131.98,131.96,33.25392798]
[1765708043957,0.66,131.99,131.96,31.04855852]
[1765708044154,5.06250767,131.98,131.96,31.04855852]
[1765708044357,0.66,131.99,131.96,31.04855852]
[1765708044558,5.06243602,131.98,131.96,31.04855852]
[1765708044771,0.66,131.99,131.96,31.04855852]
[1765708044968,5.06225164,131.98,131.96,31.04855852]
[1765708045174,2.86536946,131.99,131.96,7.57766175]
[1765708045356,5.75204713,131.98,131.96,7.57766175]
[1765708045557,5.06204713,131.97,131.96,7.57766175]
[1765708048149,5.06204713,131.97,131.96,8.27766175]
[1765708048345,5.06204713,131.97,131.96,7.57766175]
[1765708048975,7.95741659,131.97,131.94,7.7788688]
[1765708049269,5.75204713,131.96,131.94,7.7788688]
[1765708049573,5.06204713,131.95,131.94,7.7788688]
[1765708049871,5.06204713,131.95,131.94,8.4788688]
[1765708050210,5.06204713,131.95,131.94,7.7788688]
[1765708050478,5.06204713,131.95,131.94,0.2]
[1765708050682,5.75204713,131.95,131.94,0.2]
[1765708051284,7.95741659,131.95,131.94,0.2]
[1765708054197,15.53604485,131.95,131.94,0.2]
[1765708054495,65.53604485,131.95,131.94,0.2]
[1765708054785,63.33067539,131.95,131.94,0.2]
[1765708055593,55.75204713,131.95,131.94,0.2]
[1765708057561,65.53604485,131.95,131.94,0.2]
[1765708057960,63.33067539,131.95,131.94,0.2]
[1765708058162,55.75204713,131.95,131.94,0.2]
[1765708059697,55.06204713,131.95,131.94,3.10536946]
[1765708059875,14.59567151,132.01,131.94,12.88994158]
[1765708060211,5.05336829,132.0,131.99,2.20536946]
[1765708060392,5.05336829,132.0,131.95,2.90536946]
[1765708060598,5.05336829,131.99,131.98,2.20536946]
[1765708060984,5.05336829,131.99,131.98,2.90536946]
[1765708061292,5.05336829,131.99,131.96,2.20536946]
[1765708061495,0.69,132.0,131.97,14.60492798]
[1765708061688,5.05396287,131.99,131.97,13.90492798]
[1765708061889,5.05396287,131.98,131.97,13.90492798]
[1765708062071,5.05396287,131.98,131.96,11.7242032]
[1765708062271,0.69,131.99,131.96,11.7242032]
[1765708062578,5.05407019,131.98,131.96,11.7242032]
[1765708062886,0.69,131.99,131.96,34.48509997]
[1765708063197,5.05414789,131.98,131.95,11.02481658]
[1765708063500,5.05414789,131.97,131.95,34.4891676]
[1765708063707,0.69,131.98,131.95,34.4891676]
[1765708063861,5.05524507,131.97,131.95,34.4891676]
[1765708064060,7.57637542,131.99,131.96,0.7]
[1765708064061,8.26637542,131.99,131.96,0.7]
[1765708064288,5.05525542,131.98,131.96,0.7]
[1765708064484,5.05525542,131.97,131.96,0.7]
[1765708065690,5.05525542,131.97,131.96,8.27805395]
[1765708065891,5.05525542,131.97,131.96,11.72445187]
[1765708066098,5.05525542,131.97,131.95,11.72483784]
[1765708066304,8.26639665,131.99,131.95,11.72483784]
[1765708066516,5.74578312,131.98,131.95,11.72483784]
[1765708066728,5.05578312,131.97,131.94,11.22540156]
[1765708066892,5.05578312,131.97,131.94,0.2]
[1765708066893,8.50155501,131.96,131.94,0.2]
[1765708067213,7.57644064,131.99,131.94,7.77871489]
[1765708067419,7.57644064,131.99,131.95,7.57859522]
[1765708067420,5.05548031,131.98,131.95,7.57859522]
[1765708067598,5.05548031,131.97,131.95,0.7]
[1765708067804,5.05548031,131.96,131.94,0.2]
[1765708068001,5.05548031,131.95,131.94,0.2]
[1765708068304,8.50187823,131.95,131.94,0.2]
[1765708068499,16.77050649,131.95,131.94,0.2]
[1765708068888,17.05482963,131.95,131.94,0.2]
[1765708069396,13.60843171,131.95,131.94,0.2]
[1765708069604,17.05482963,131.95,131.94,0.2]
[1765708071404,13.60843171,131.95,131.94,0.2]
[1765708071613,17.05482963,131.95,131.94,0.2]
[1765708072538,29.31117247,131.95,131.94,0.2]
[1765708074036,29.31117247,131.95,131.9,0.2]
[1765708074037,9.09426806,131.94,131.9,0.2]
[1765708074337,5.05548031,131.93,131.9,4.34639792]
[1765708074793,5.05548031,131.93,131.91,0.7]
[1765708074998,6.99927875,131.97,131.92,3.44639792]
[1765708075232,5.04662964,131.96,131.92,3.44639792]
[1765708075527,5.73662964,131.95,131.92,4.14639792]
[1765708075708,5.04662964,131.94,131.93,0.68]
[1765708075891,5.04662964,131.95,131.93,0.68]
[1765708076095,5.04662964,131.94,131.93,0.68]
[1765708076327,5.04662964,131.95,131.93,0.68]
[1765708076628,5.04662964,131.94,131.93,0.68]
[1765708076807,5.04662964,131.95,131.93,0.68]
[1765708076996,5.04662964,131.94,131.93,0.68]
[1765708077197,5.04662964,131.95,131.93,0.68]
[1765708077393,5.04662964,131.94,131.92,8.26031779]
[1765708077623,5.04662964,131.95,131.92,8.26031779]
[1765708077818,5.04662964,131.94,131.92,7.58031779]
[1765708078022,5.04662964,131.95,131.93,0.68]
[1765708078225,5.04662964,131.94,131.93,0.68]
[1765708078424,5.04662964,131.95,131.93,0.68]
[1765708078605,5.04662964,131.94,131.93,0.68]
[1765708078805,5.04662964,131.95,131.93,0.68]
[1765708078997,5.04662964,131.94,131.91,8.26074281]
[1765708079202,4.09639792,131.94,131.9,7.78138823]
[1765708079408,4.09639792,131.94,131.91,0.68]
[1765708079409,5.04554389,131.93,131.91,0.68]
[1765708081030,0.65,131.92,131.9,0.2]
[1765708081210,9.14118478,131.92,131.9,0.2]
[1765708081618,5.04478686,131.91,131.9,0.2]
[1765708082021,9.14118478,131.91,131.9,0.2]
[1765708082906,16.72211116,131.91,131.9,0.2]
[1765708085255,17.0064343,131.91,131.9,0.2]
[1765708086830,13.56003638,131.91,131.9,0.2]
[1765708087012,17.0064343,131.91,131.9,0.2]
[1765708089537,25.81637922,131.91,131.9,0.2]
[1765708094616,22.3699813,131.91,131.9,0.2]
[1765708094816,25.81637922,131.91,131.9,0.2]
[1765708097127,5.04478686,131.91,131.9,0.88]
[1765708097320,3.44639792,131.92,131.9,0.2]
[1765708097559,9.14118478,131.92,131.9,0.2]
[1765708097852,5.69478686,131.92,131.9,0.2]
[1765708098160,5.04478686,131.92,131.9,0.2]
[1765708098321,8.49118478,131.92,131.9,0.2]
[1765708098521,7.58092638,131.91,131.9,0.2]
[1765708099752,12.61007049,131.91,131.9,0.2]
[1765708100434,16.05646841,131.91,131.9,0.2]
[1765708102948,16.70646841,131.91,131.9,0.2]
[1765708103546,16.05646841,131.91,131.9,0.2]
[1765708103754,16.70646841,131.91,131.9,0.2]
[1765708105025,16.05646841,131.91,131.9,0.2]
[1765708106472,16.05987268,131.91,131.9,0.2]
[1765708106824,12.61347476,131.91,131.9,0.2]
[1765708107743,17.06419582,131.91,131.9,0.2]
[1765708110756,12.8977979,131.91,131.9,0.88]
[1765708111331,12.8977979,131.91,131.9,0.2]
[1765708111870,17.06419582,131.91,131.9,0.2]
[1765708112273,16.34419582,131.91,131.9,0.2]
[1765708114449,23.35488129,131.91,131.9,0.2]
[1765708114653,22.63488129,131.91,131.9,0.2]
[1765708115428,23.21271972,131.91,131.9,0.2]
[1765708115751,22.49271972,131.91,131.9,0.2]
[1765708116755,23.21271972,131.91,131.9,0.2]
[1765708117160,22.49271972,131.91,131.9,0.2]
[1765708118076,23.21271972,131.91,131.9,0.2]
[1765708118379,22.63488129,131.91,131.9,0.2]
[1765708120554,22.49271972,131.91,131.9,0.2]
[1765708122266,16.20203425,131.91,131.9,0.2]
[1765708122561,86.035325,131.91,131.86,0.2]
[1765708122787,86.035325,131.91,131.84,0.68]
[1765708122788,16.49348912,131.87,131.84,0.68]
[1765708122967,3.44639792,131.85,131.83,0.88]
[1765708123263,5.03254838,131.84,131.83,0.88]
[1765708123438,5.03254838,131.84,131.83,0.2]
[1765708124060,5.03254838,131.84,131.83,0.88]
[1765708127937,5.03254838,131.84,131.83,8.46552681]
[1765708128143,5.05436728,131.85,131.83,10.67598595]
[1765708128372,9.79335549,131.88,131.84,0.68]
[1765708128670,5.05427272,131.87,131.84,0.68]
[1765708128852,5.05427272,131.86,131.84,0.68]
[1765708129047,5.05427272,131.85,131.84,0.68]
[1765708129266,5.05427272,131.85,131.84,8.26495145]
[1765708130049,5.05414179,131.85,131.84,8.26495145]
[1765708133155,5.05414179,131.85,131.84,0.68]
[1765708133980,14.84897711,131.85,131.83,0.2]
[1765708134177,7.98460093,131.84,131.83,0.2]
[1765708135256,15.56955238,131.84,131.83,0.2]
[1765708137569,28.90096672,131.84,131.83,0.2]
[1765708137756,12.63909324,131.84,131.83,0.2]
[1765708137961,14.84955238,131.84,131.83,0.2]
[1765708139183,24.63382044,131.84,131.83,0.2]
[1765708139366,30.95149768,131.84,131.83,0.2]
[1765708140984,15.82387552,131.84,131.83,0.2]
[1765708141570,30.95149768,131.84,131.83,0.2]
[1765708142366,24.63382044,131.84,131.83,0.2]
[1765708142765,30.95149768,131.84,131.83,0.2]
[1765708144573,2.49478228,131.81,131.8,0.2]
[1765708144881,23.84187348,131.81,131.8,0.2]
[1765708145060,28.89601527,131.81,131.8,0.2]
[1765708145256,29.58601527,131.81,131.8,0.2]
[1765708145982,38.39596019,131.81,131.8,0.2]
[1765708146551,45.98263798,131.81,131.8,0.2]
[1765708146769,34.96223392,131.81,131.8,0.2]
[1765708146980,37.17269306,131.81,131.8,0.2]
[1765708148378,45.98263798,131.81,131.8,0.2]
[1765708150865,12.64081958,131.81,131.8,0.92]
[1765708151064,7.58667779,131.81,131.8,0.92]
[1765708151288,14.82057337,131.81,131.8,0.92]
[1765708151855,24.60484143,131.81,131.8,0.2]
[1765708152462,22.39438229,131.81,131.8,0.2]
[1765708152663,24.60484143,131.81,131.8,0.2]
[1765708153161,12.89443737,131.81,131.8,0.2]
[1765708153375,15.10489651,131.81,131.8,0.2]
[1765708153590,15.79489651,131.81,131.8,0.2]
[1765708153892,15.10489651,131.81,131.8,0.2]
[1765708154087,39.86239177,131.81,131.8,0.2]
[1765708154287,0.28432314,131.77,131.76,0.2]
[1765708154470,2.49478228,131.77,131.76,0.2]
[1765708154665,8.20821872,131.77,131.76,0.2]
[1765708154870,15.79719951,131.77,131.76,0.2]
[1765708157993,15.10719951,131.77,131.76,0.2]
[1765708167493,12.61241723,131.77,131.76,0.87]
[1765708169680,14.82287637,131.77,131.76,0.87]
[1765708170193,14.82287637,131.77,131.76,0.2]
[1765708170390,15.10719951,131.77,131.76,0.2]
[1765708171699,15.80719951,131.77,131.76,0.2]
[1765708174907,99.61714443,131.77,131.76,0.2]
[1765708175095,105.88991073,131.77,131.76,0.2]
[1765708175691,108.10036987,131.77,131.76,0.2]
[1765708175888,13.0470912,131.74,131.7,0.1]
[1765708176088,5.02343644,131.73,131.72,0.67]
[1765708176295,7.23389558,131.73,131.72,0.67]
[1765708178297,14.82518078,131.73,131.72,0.67]
[1765708179007,14.82518078,131.73,131.7,0.77]
[1765708179219,7.23389558,131.72,131.7,0.77]
[1765708182217,5.02343644,131.71,131.7,0.77]
[1765708182420,7.23389558,131.72,131.7,0.77]
[1765708183225,5.02343644,131.71,131.7,0.77]
[1765708184522,2.21045914,131.72,131.7,0.77]
[1765708184710,5.03460633,131.71,131.7,0.77]
[1765708185605,12.62704426,131.71,131.7,0.77]
[1765708185799,5.03460633,131.71,131.7,0.77]
[1765708186924,5.73460633,131.71,131.7,0.1]
[1765708187223,5.03460633,131.71,131.7,0.77]
[1765708188904,12.62704426,131.71,131.7,0.77]
[1765708189104,5.03460633,131.71,131.7,0.77]
[1765708191601,8.49606358,131.71,131.7,0.77]
[1765708191927,5.03460633,131.71,131.7,0.77]
[1765708192129,8.49606358,131.71,131.7,0.1]
[1765708192834,5.03460633,131.71,131.7,0.77]
[1765708195818,55.03460633,131.71,131.7,0.77]
[1765708198604,58.49606358,131.71,131.7,0.77]
[1765708199023,62.62704426,131.71,131.7,0.1]
[1765708199225,66.08850151,131.71,131.7,0.1]
[1765708200325,62.62704426,131.71,131.7,0.8]
[1765708200829,62.62704426,131.71,131.7,0.1]
[1765708201426,62.62704426,131.71,131.7,0.8]
[1765708201829,66.08850151,131.71,131.7,0.8]
[1765708202034,67.08282465,131.71,131.7,0.1]
[1765708202232,82.17149522,131.71,131.7,0.1]
[1765708202817,73.3615503,131.71,131.7,0.1]
[1765708203224,67.08282465,131.71,131.7,0.1]
[1765708205014,66.08850151,131.71,131.7,0.8]
[1765708205423,66.08850151,131.71,131.7,0.1]
[1765708205913,66.08850151,131.71,131.7,0.8]
[1765708205914,55.03460633,131.71,131.7,0.8]
[1765708207835,55.03460633,131.71,131.7,0.1]
[1765708208348,66.79850151,131.71,131.7,0.1]
[1765708208532,67.08282465,131.71,131.7,0.1]
[1765708208849,82.17149522,131.71,131.7,0.1]
[1765708209033,0.28432314,131.7,131.69,0.1]
[1765708209345,15.7935121,131.7,131.69,0.1]
[1765708209738,28.06491427,131.7,131.69,0.1]
[1765708210137,35.65792869,131.7,131.69,0.1]
[1765708211520,32.19647144,131.7,131.69,0.1]
[1765708211944,136.79647144,131.7,131.69,0.1]
[1765708212120,133.95480331,131.7,131.69,0.1]
[1765708212734,22.14135926,131.67,131.66,0.1]
[1765708212932,36.93555563,131.67,131.66,0.1]
[1765708213144,31.34742284,131.67,131.66,0.1]
[1765708213447,37.64112131,131.67,131.66,0.1]
[1765708214272,45.23586574,131.67,131.66,0.1]
[1765708228365,38.94216727,131.67,131.66,0.1]
[1765708228938,34.77071002,131.67,131.66,0.1]
[1765708229158,12.62935076,131.67,131.66,0.75]
[1765708229665,5.03460633,131.67,131.66,0.75]
[1765708229833,3.46145725,131.7,131.66,0.75]
[1765708230033,13.83339563,131.7,131.66,4.21145725]
[1765708230448,0.28432314,131.69,131.67,0.65]
[1765708230658,5.30777385,131.69,131.67,0.65]
[1765708230835,8.48490796,131.68,131.66,0.1]
[1765708231037,11.0560247,131.68,131.66,0.75]
[1765708231265,7.59456745,131.68,131.66,0.75]
[1765708231756,12.61880808,131.68,131.66,0.75]
[1765708232342,3.46145725,131.67,131.66,0.1]
[1765708232542,8.48569788,131.67,131.66,0.1]
[1765708233073,16.08044231,131.67,131.66,0.75]
[1765708233248,16.08044231,131.67,131.66,0.1]
[1765708233449,16.36476545,131.67,131.66,0.1]
[1765708234060,16.36476545,131.67,131.66,0.75]
[1765708234658,12.61898506,131.67,131.66,0.75]
[1765708237880,5.02424063,131.67,131.66,0.75]
[1765708238072,12.618443,131.68,131.66,0.75]
[1765708238272,5.02424063,131.67,131.66,0.75]
[1765708242259,5.02424063,131.67,131.66,8.34532128]
[1765708242464,5.02424063,131.69,131.66,11.80677853]
[1765708242654,5.02424063,131.7,131.67,4.11145725]
[1765708242853,5.02424063,131.69,131.67,4.11145725]
[1765708243164,20.639683,131.71,131.68,0.65]
[1765708243165,16.07884584,131.7,131.68,0.65]
[1765708243483,16.07884584,131.7,131.67,0.65]
[1765708243484,8.48569788,131.69,131.67,0.65]
[1765708243682,5.02424063,131.68,131.67,0.65]
[1765708244063,5.02424063,131.68,131.67,4.11145725]
[1765708244268,5.02424063,131.71,131.68,7.59416767]
[1765708244469,5.02424063,131.7,131.68,8.24416767]
[1765708244672,5.02424063,131.69,131.68,7.59416767]
[1765708244883,5.02424063,131.71,131.68,7.59416767]
[1765708245071,5.02424063,131.7,131.68,7.59416767]
[1765708245258,5.02424063,131.69,131.67,11.05604177]
[1765708245463,5.02424063,131.7,131.67,11.05604177]
[1765708245684,5.02424063,131.69,131.67,11.05604177]
[1765708245858,5.02424063,131.7,131.68,0.65]
[1765708246059,2.21527719,131.72,131.69,2.21527719]
[1765708246060,5.02424063,131.72,131.69,2.21527719]
[1765708246263,5.02424063,131.72,131.68,0.65]
[1765708246264,5.02424063,131.74,131.7,9.80804527]
[1765708246465,5.02424063,131.73,131.7,9.80804527]
[1765708246665,5.02424063,131.73,131.71,0.65]
[1765708249164,50.0,131.72,131.71,0.65]
[1765708249972,50.0,131.72,131.71,8.24243793]
[1765708250179,9.80522042,131.76,131.71,10.45771512]
[1765708250402,10.53527719,131.77,131.72,2.86527719]
[1765708250603,5.0303089,131.76,131.73,0.65]
[1765708250897,5.0303089,131.77,131.73,2.86527719]
[1765708251509,5.0303089,131.77,131.74,0.65]
[1765708252292,5.0303089,131.77,131.74,8.24068413]
[1765708252490,5.0303089,131.77,131.75,0.65]
[1765708253492,9.80378832,131.78,131.75,0.65]
[1765708254177,50.0,131.77,131.75,0.65]
[1765708254369,59.80433036,131.77,131.75,0.65]
[1765708254575,2.21527719,131.76,131.74,0.65]
[1765708255468,2.92527719,131.75,131.72,0.65]
[1765708255692,2.21527719,131.74,131.72,0.65]
[1765708256500,9.80615476,131.74,131.72,0.65]
[1765708256801,2.21527719,131.73,131.69,21.19637201]
[1765708256992,2.21527719,131.73,131.7,0.69]
[1765708257194,2.21527719,131.72,131.7,0.69]
[1765708257384,2.21527719,131.72,131.69,0.69]
[1765708258080,2.89527719,131.71,131.67,0.69]
[1765708258275,2.21527719,131.71,131.68,0.69]
[1765708258681,2.21527719,131.71,131.66,25.12809799]
[1765708258682,2.21527719,131.69,131.67,0.69]
[1765708259788,9.80908236,131.69,131.67,0.69]
[1765708260427,9.80908236,131.69,131.66,0.1]
[1765708260428,13.0470912,131.67,131.66,0.1]
[1765708260567,15.54669153,131.67,131.66,0.1]
[1765708260768,7.59380517,131.69,131.66,0.1]
[1765708260975,20.64089637,131.69,131.67,0.69]
[1765708261175,22.85617356,131.69,131.66,0.79]
[1765708261379,23.53617356,131.69,131.66,0.79]
[1765708262511,22.85617356,131.69,131.66,0.79]
[1765708263299,2.89527719,131.68,131.66,0.1]
[1765708263506,2.21527719,131.68,131.66,0.1]
[1765708263891,9.80952913,131.68,131.66,0.1]
[1765708264202,5.97925477,131.67,131.66,0.1]
[1765708264406,2.49960033,131.67,131.66,0.1]
[1765708265806,7.51542094,131.67,131.66,0.1]
[1765708265985,15.11016537,131.67,131.66,0.1]
[1765708267197,12.89488818,131.67,131.66,0.1]
[1765708267508,10.09434476,131.67,131.66,0.1]
[1765708267709,15.11016537,131.67,131.66,0.1]
[1765708268502,15.79016537,131.67,131.66,0.1]
[1765708268676,12.89488818,131.67,131.66,0.1]
[1765708268878,7.87906757,131.67,131.66,0.1]
[1765708269905,0.28432314,131.67,131.66,0.1]
[1765708270104,12.61041235,131.68,131.66,0.79]
[1765708270292,12.61041235,131.68,131.66,0.1]
[1765708270493,13.29041235,131.68,131.66,0.1]
[1765708270794,12.61041235,131.68,131.66,0.79]
[1765708271905,12.61041235,131.68,131.66,0.1]
[1765708271906,0.68,131.67,131.66,0.1]
[1765708272397,12.61041235,131.68,131.66,0.1]
[1765708272595,13.29041235,131.68,131.66,0.1]
[1765708277093,12.61041235,131.68,131.66,0.79]
[1765708278291,0.68,131.67,131.66,0.1]
[1765708278492,13.29041235,131.68,131.66,0.1]
[1765708278684,0.68,131.67,131.66,0.1]
[1765708279493,12.61041235,131.68,131.66,0.1]
[1765708279695,13.29041235,131.68,131.66,0.1]
[1765708279890,12.61041235,131.68,131.66,0.1]
[1765708280096,0.68,131.67,131.66,0.1]
[1765708280290,0.96432314,131.67,131.66,0.1]